fUST/lending_fUST_20250131
["ID","MTS","AMOUNT","RATE_DAILY","PERIOD"]
[351011846,1738285843951,-500.0,0.00017808,2]
[351011847,1738285843960,-726.34,0.00017808,2]
[351011848,1738285843969,-500.0,0.00017808,2]
[351011849,1738285843979,-618.14,0.00017808,2]
[351011850,1738285843988,-459.84058065,0.00017808,2]
[351011851,1738285843998,-649.66,0.00017808,2]
[351011852,1738285844007,-1332.99,0.00017808,2]
[351011853,1738285844016,-199.82675308,0.000179,2]
[351011854,1738285844026,-11137.94429858,0.00017943,5]
[351011855,1738285844035,-5890.32,0.00017943,2]
[351011857,1738285844044,-500.0,0.00017943,2]
[351011859,1738285844054,-2848.7,0.00017943,2]
[351011861,1738285844063,-2767.1,0.00017943,2]
[351011863,1738285844073,-500.0,0.00017945,2]
[351011865,1738285844083,-500.0,0.00017945,2]
[351011867,1738285844092,-500.0,0.00017945,2]
[351011869,1738285844101,-500.0,0.00017945,2]
[351011872,1738285844110,-500.0,0.00017945,2]
[351011875,1738285844119,-500.0,0.00017945,2]
[351011878,1738285844128,-721.01,0.00017945,2]
[351011881,1738285844137,-500.0,0.00017945,2]
[351011884,1738285844146,-1050.33,0.00017945,2]
[351011887,1738285844155,-500.0,0.00017945,2]
[351011890,1738285844164,-500.0,0.00017945,2]
[351011893,1738285844176,-500.0,0.00017945,2]
[351011896,1738285844198,-2015.29,0.00017945,2]
[351011898,1738285844210,-574.98,0.00017945,2]
[351011901,1738285844219,-500.0,0.00017945,2]
[351011904,1738285844230,-630.44,0.00017945,2]
[351011907,1738285844239,-500.0,0.00017945,2]
[351011909,1738285844248,-2574.71,0.00017945,2]
[351011911,1738285844259,-500.0,0.00017945,2]
[351011913,1738285844270,-500.0,0.00017945,2]
[351011915,1738285844280,-726.34,0.00017945,2]
[351011918,1738285844290,-500.0,0.00017945,2]
[351011920,1738285844300,-618.14,0.00017945,2]
[351011922,1738285844309,-649.66,0.00017945,2]
[351011924,1738285844318,-1332.99,0.00017945,2]
[351011926,1738285844328,-500.0,0.00017999,2]
[351011928,1738285844338,-500.0,0.00017999,2]
[351011930,1738285844348,-199.82675302,0.00018072,2]
[351011932,1738285844358,-31484.81685713,0.0001808,5]
[351011934,1738285844371,-5890.32,0.0001808,2]
[351011936,1738285844380,-500.0,0.0001808,2]
[351011938,1738285844389,-2848.7,0.0001808,2]
[351011940,1738285844398,-2767.1,0.0001808,2]
[351011942,1738285844409,-500.0,0.00018082,2]
[351011944,1738285844418,-500.0,0.00018082,2]
[351011945,1738285844427,-500.0,0.00018082,2]
[351011947,1738285844439,-500.0,0.00018082,2]
[351011949,1738285844448,-500.0,0.00018082,2]
[351011951,1738285844458,-500.0,0.00018082,2]
[351011953,1738285844468,-721.01,0.00018082,2]
[351011955,1738285844477,-500.0,0.00018082,2]
[351011957,1738285844485,-1050.33,0.00018082,2]
[351011959,1738285844494,-500.0,0.00018082,2]
[351011961,1738285844505,-500.0,0.00018082,2]
[351011963,1738285844514,-500.0,0.00018082,2]
[351011965,1738285844523,-2015.29,0.00018082,2]
[351011967,1738285844532,-574.98,0.00018082,2]
[351011969,1738285844541,-500.0,0.00018082,2]
[351011971,1738285844551,-630.44,0.00018082,2]
[351011973,1738285844560,-500.0,0.00018082,2]
[351011975,1738285844569,-2574.71,0.00018082,2]
[351011977,1738285844579,-500.0,0.00018082,2]
[351011979,1738285844588,-500.0,0.00018082,2]
[351011981,1738285844597,-726.34,0.00018082,2]
[351011983,1738285844607,-500.0,0.00018082,2]
[351011985,1738285844616,-618.14,0.00018082,2]
[351011987,1738285844625,-649.66,0.00018082,2]
[351011989,1738285844634,-1332.99,0.00018082,2]
[351011991,1738285844643,-6345.57,0.000181,2]
[351011993,1738285844652,-7289.48,0.000181,2]
[351011995,1738285844661,-6991.53744165,0.000182,2]
[351011997,1738285844670,-3262.03410604,0.000182,2]
[351011999,1738285844680,-3262.03410604,0.000182,2]
[351012001,1738285844689,-3262.03410604,0.000182,2]
[351012003,1738285844699,-3262.03410604,0.000182,2]
[351012005,1738285844707,-5890.32,0.00018217,2]
[351012007,1738285844717,-500.0,0.00018217,2]
[351012009,1738285844726,-2848.7,0.00018217,2]
[351012011,1738285844735,-2767.1,0.00018217,2]
[351012013,1738285844744,-500.0,0.00018219,2]
[351012014,1738285844753,-500.0,0.00018219,2]
[351012016,1738285844762,-500.0,0.00018219,2]
[351012018,1738285844772,-500.0,0.00018219,2]
[351012020,1738285844781,-500.0,0.00018219,2]
[351012022,1738285844790,-500.0,0.00018219,2]
[351012024,1738285844799,-721.01,0.00018219,2]
[351012026,1738285844808,-500.0,0.00018219,2]
[351012028,1738285844817,-1050.33,0.00018219,2]
[351012030,1738285844826,-500.0,0.00018219,2]
[351012032,1738285844835,-500.0,0.00018219,2]
[351012034,1738285844844,-500.0,0.00018219,2]
[351012036,1738285844853,-2015.29,0.00018219,2]
[351012038,1738285844862,-574.98,0.00018219,2]
[351012040,1738285844871,-500.0,0.00018219,2]
[351012042,1738285844881,-630.44,0.00018219,2]
[351012044,1738285844890,-500.0,0.00018219,2]
[351012046,1738285844899,-2574.71,0.00018219,2]
[351012048,1738285844908,-500.0,0.00018219,2]
[351012050,1738285844918,-500.0,0.00018219,2]
[351012052,1738285844927,-726.34,0.00018219,2]
[351012054,1738285844937,-500.0,0.00018219,2]
[351012056,1738285844946,-618.14,0.00018219,2]
[351012058,1738285844956,-649.66,0.00018219,2]
[351012060,1738285844966,-1332.99,0.00018219,2]
[351012062,1738285844975,-199.82675302,0.00018245,2]
[351012064,1738285844984,-316.879,0.00018323,2]
[351012066,1738285844994,-5890.32,0.00018354,2]
[351012068,1738285845004,-2848.7,0.00018354,2]
[351012070,1738285845013,-2767.1,0.00018354,2]
[351012083,1738285845131,-296.65,0.00018356,2]
[351012085,1738285845141,-626.0,0.00018356,2]
[351012087,1738285845150,-500.0,0.00018356,2]
[351012089,1738285845159,-515.13,0.00018356,2]
[351012091,1738285845168,-721.01,0.00018356,2]
[351012093,1738285845178,-250.26,0.00018356,2]
[351012095,1738285845187,-1050.33,0.00018356,2]
[351012097,1738285845196,-500.0,0.00018356,2]
[351012099,1738285845205,-500.0,0.00018356,2]
[351012101,1738285845215,-500.0,0.00018356,2]
[351012103,1738285845224,-2015.29,0.00018356,2]
[351012105,1738285845233,-574.98,0.00018356,2]
[351012107,1738285845242,-500.0,0.00018356,2]
[351012109,1738285845251,-630.44,0.00018356,2]
[351012111,1738285845261,-500.0,0.00018356,2]
[351012113,1738285845270,-2574.71,0.00018356,2]
[351012114,1738285845280,-500.0,0.00018356,2]
[351012116,1738285845288,-500.0,0.00018356,2]
[351012118,1738285845298,-726.34,0.00018356,2]
[351012120,1738285845306,-500.0,0.00018356,2]
[351012122,1738285845316,-618.14,0.00018356,2]
[351012124,1738285845325,-649.66,0.00018356,2]
[351012126,1738285845334,-1332.99,0.00018356,2]
[351012128,1738285845343,-199.82675302,0.00018417,2]
[351012130,1738285845352,-5890.32,0.00018491,2]
[351012132,1738285845362,-2848.7,0.00018491,2]
[351012134,1738285845375,-2767.1,0.00018491,2]
[351012136,1738285845384,-500.0,0.00018493,2]
[351012138,1738285845393,-721.01,0.00018493,2]
[351012140,1738285845403,-1050.33,0.00018493,2]
[351012142,1738285845413,-500.0,0.00018493,2]
[351012144,1738285845423,-500.0,0.00018493,2]
[351012146,1738285845432,-500.0,0.00018493,2]
[351012148,1738285845442,-2015.29,0.00018493,2]
[351012150,1738285845451,-574.98,0.00018493,2]
[351012152,1738285845462,-500.0,0.00018493,2]
[351012154,1738285845471,-630.44,0.00018493,2]
[351012156,1738285845480,-500.0,0.00018493,2]
[351012158,1738285845490,-2574.71,0.00018493,2]
[351012160,1738285845500,-272.75253668,0.00018493,2]
[351012162,1738285845510,-500.0,0.00018493,2]
[351012164,1738285845519,-726.34,0.00018493,2]
[351012166,1738285845528,-500.0,0.00018493,2]
[351012168,1738285845538,-618.14,0.00018493,2]
[351012170,1738285845547,-649.66,0.00018493,2]
[351012172,1738285845556,-1332.99,0.00018493,2]
[351012174,1738285845565,-500.0,0.00018548,2]
[351012176,1738285845575,-199.82675302,0.0001859,2]
[351012178,1738285845584,-587.0,0.00018592,2]
[351012180,1738285845594,-5890.32,0.00018628,2]
[351012182,1738285845603,-2848.7,0.00018628,2]
[351012184,1738285845612,-2767.1,0.00018628,2]
[351012186,1738285845621,-431.08,0.0001863,2]
[351012188,1738285845630,-721.01,0.0001863,2]
[351012190,1738285845639,-1050.33,0.0001863,2]
[351012192,1738285845648,-500.0,0.0001863,2]
[351012194,1738285845658,-500.0,0.0001863,2]
[351012196,1738285845667,-500.0,0.0001863,2]
[351012198,1738285845676,-500.0,0.0001863,2]
[351012200,1738285845685,-500.0,0.0001863,2]
[351012202,1738285845694,-424.28266005,0.0001863,2]
[351012204,1738285845703,-500.0,0.0001863,2]
[351012205,1738285845713,-2015.29,0.0001863,2]
[351012208,1738285845722,-574.98,0.0001863,2]
[351012209,1738285845731,-500.0,0.0001863,2]
[351012211,1738285845740,-630.44,0.0001863,2]
[351012213,1738285845750,-500.0,0.0001863,2]
[351012215,1738285845760,-2574.71,0.0001863,2]
[351012217,1738285845769,-726.34,0.0001863,2]
[351012219,1738285845778,-500.0,0.0001863,2]
[351012221,1738285845787,-618.14,0.0001863,2]
[351012223,1738285845796,-649.66,0.0001863,2]
[351012225,1738285845806,-1332.99,0.0001863,2]
[351012227,1738285845815,-199.82675302,0.00018762,2]
[351012229,1738285845825,-5890.32,0.00018765,2]
[351012231,1738285845834,-2848.7,0.00018765,2]
[351012233,1738285845843,-2767.1,0.00018765,2]
[351012235,1738285845852,-721.01,0.00018767,2]
[351012237,1738285845862,-1050.33,0.00018767,2]
[351012239,1738285845871,-498.17039868,0.00018767,2]
[351012241,1738285845881,-500.0,0.00018767,2]
[351012243,1738285845890,-500.0,0.00018767,2]
[351012245,1738285845899,-2015.29,0.00018767,2]
[351012247,1738285845908,-574.98,0.00018767,2]
[351012249,1738285845917,-500.0,0.00018767,2]
[351012251,1738285845927,-630.44,0.00018767,2]
[351012253,1738285845936,-2574.71,0.00018767,2]
[351012255,1738285845945,-726.34,0.00018767,2]
[351012256,1738285845954,-253.88102819,0.00018767,2]
[351012258,1738285845964,-618.14,0.00018767,2]
[351012260,1738285845974,-649.66,0.00018767,2]
[351012262,1738285845984,-1332.99,0.00018767,2]
[351012264,1738285845994,-252.84,0.00018823,2]
[351012267,1738285846004,-171.12552192,0.000189,2]
[351012268,1738285846014,-621.0,0.000189,2]
[351012270,1738285846024,-5890.32,0.00018902,2]
[351012272,1738285846032,-2848.7,0.00018902,2]
[351012274,1738285846041,-2767.1,0.00018902,2]
[351012276,1738285846051,-721.01,0.00018904,2]
[351012278,1738285846060,-1050.33,0.00018904,2]
[351012280,1738285846069,-644.74,0.00018904,2]
[351012282,1738285846079,-500.0,0.00018904,2]
[351012284,1738285846088,-2015.29,0.00018904,2]
[351012286,1738285846097,-574.98,0.00018904,2]
[351012288,1738285846107,-500.0,0.00018904,2]
[351012290,1738285846117,-630.44,0.00018904,2]
[351012293,1738285846126,-2574.71,0.00018904,2]
[351012296,1738285846136,-726.34,0.00018904,2]
[351012299,1738285846146,-618.14,0.00018904,2]
[351012302,1738285846156,-649.66,0.00018904,2]
[351012305,1738285846166,-1332.99,0.00018904,2]
[351012308,1738285846175,-199.82675302,0.00018934,2]
[351012311,1738285846184,-250.0,0.00019,30]
[351012314,1738285846193,-2263.703,0.00019001,2]
[351012317,1738285846203,-5890.32,0.00019039,2]
[351012320,1738285846212,-2848.7,0.00019039,2]
[351012323,1738285846222,-2767.1,0.00019039,2]
[351012326,1738285846231,-500.0,0.0001904,2]
[351012328,1738285846240,-500.0,0.0001904,2]
[351012329,1738285846250,-721.01,0.00019041,2]
[351012331,1738285846261,-1050.33,0.00019041,2]
[351012333,1738285846270,-300.0,0.00019041,2]
[351012335,1738285846279,-2015.29,0.00019041,2]
[351012337,1738285846289,-574.98,0.00019041,2]
[351012340,1738285846299,-221.98,0.00019041,2]
[351012342,1738285846309,-630.44,0.00019041,2]
[351012344,1738285846318,-2574.71,0.00019041,2]
[351012346,1738285846328,-726.34,0.00019041,2]
[351012348,1738285846337,-618.14,0.00019041,2]
[351012350,1738285846346,-649.66,0.00019041,2]
[351012352,1738285846356,-1332.99,0.00019041,2]
[351012354,1738285846368,-199.82675302,0.00019107,2]
[351012356,1738285846377,-5890.32,0.00019176,2]
[351012358,1738285846386,-2848.7,0.00019176,2]
[351012360,1738285846396,-2767.1,0.00019176,2]
[351012362,1738285846405,-721.01,0.00019178,2]
[351012363,1738285846415,-1050.33,0.00019178,2]
[351012364,1738285846424,-500.0,0.00019178,7]
[351012365,1738285846433,-499.0,0.00019178,2]
[351012366,1738285846443,-2015.29,0.00019178,2]
[351012367,1738285846454,-574.98,0.00019178,2]
[351012368,1738285846463,-630.44,0.00019178,2]
[351012369,1738285846473,-2574.71,0.00019178,2]
[351012370,1738285846482,-726.34,0.00019178,2]
[351012371,1738285846492,-618.14,0.00019178,2]
[351012372,1738285846501,-649.66,0.00019178,2]
[351012374,1738285846512,-1332.99,0.00019178,2]
[351012376,1738285846521,-168.653132,0.00019178,2]
[351012377,1738285846530,-199.82675302,0.00019279,2]
[351012380,1738285846543,-151.0,0.000193,2]
[351012382,1738285846555,-5890.32,0.00019313,2]
[351012384,1738285846569,-2848.7,0.00019313,2]
[351012387,1738285846581,-2767.1,0.00019313,2]
[351012389,1738285846593,-721.01,0.00019315,2]
[351012391,1738285846605,-1050.33,0.00019315,2]
[351012394,1738285846616,-2015.29,0.00019315,2]
[351012396,1738285846627,-574.98,0.00019315,2]
[351012398,1738285846637,-630.44,0.00019315,2]
[351012400,1738285846648,-2574.71,0.00019315,2]
[351012402,1738285846659,-726.34,0.00019315,2]
[351012404,1738285846670,-618.14,0.00019315,2]
[351012407,1738285846682,-649.66,0.00019315,2]
[351012409,1738285846696,-1332.99,0.00019315,2]
[351012411,1738285846707,-13245.59911628,0.00019401,2]
[351012413,1738285846718,-5890.32,0.0001945,2]
[351012415,1738285846729,-2848.7,0.0001945,2]
[351012418,1738285846741,-2767.1,0.0001945,2]
[351012420,1738285846751,-199.82675302,0.00019452,2]
[351012422,1738285846764,-500.0,0.00019452,2]
[351012424,1738285846776,-721.01,0.00019452,2]
[351012427,1738285846788,-1050.33,0.00019452,2]
[351012429,1738285846801,-2015.29,0.00019452,2]
[351012431,1738285846811,-574.98,0.00019452,2]
[351012433,1738285846825,-630.44,0.00019452,2]
[351012436,1738285846841,-2574.71,0.00019452,2]
[351012438,1738285846852,-726.34,0.00019452,2]
[351012440,1738285846862,-618.14,0.00019452,2]
[351012442,1738285846873,-649.66,0.00019452,2]
[351012444,1738285846884,-1332.99,0.00019452,2]
[351012447,1738285846895,-6345.57,0.000195,2]
[351012449,1738285846907,-7289.48,0.000195,2]
[351012451,1738285846918,-5890.32,0.00019587,2]
[351012453,1738285846931,-2848.7,0.00019587,2]
[351012455,1738285846942,-2767.1,0.00019587,2]
[351012458,1738285846954,-721.11,0.00019589,2]
[351012460,1738285846965,-1050.37,0.00019589,2]
[351012462,1738285846975,-2015.34393021,0.00019589,2]
[351012464,1738285846985,-575.04,0.00019589,2]
[351012466,1738285846995,-630.56,0.00019589,2]
[351012468,1738285847006,-2574.72130742,0.00019589,2]
[351012470,1738285847017,-726.49,0.00019589,2]
[351012473,1738285847027,-618.17,0.00019589,2]
[351012475,1738285847038,-649.71,0.00019589,2]
[351012477,1738285847049,-151.0,0.000196,2]
[351012479,1738285847060,-579.72019544,0.00019607,2]
[351012482,1738285847071,-199.82675302,0.00019624,2]
[351012484,1738285847084,-500.0,0.00019644,2]
[351012486,1738285847095,-490.78191007,0.00019685,2]
[351012488,1738285847107,-579.72019544,0.00019707,2]
[351012490,1738285847119,-5890.4606,0.00019724,2]
[351012493,1738285847132,-2848.85,0.00019724,2]
[351012495,1738285847143,-2767.1896,0.00019724,2]
[351012497,1738285847153,-294.0,0.0001978,2]
[351012499,1738285847164,-199.82675302,0.00019797,2]
[351012501,1738285847175,-579.72019544,0.00019807,2]
[351012503,1738285847184,-500.0,0.00019863,9]
[351012506,1738285847194,-500.0,0.00019887,2]
[351012508,1738285847204,-500.0,0.00019887,2]
[351012510,1738285847214,-606.60522008,0.00019887,2]
[351012512,1738285847223,-500.0,0.00019887,2]
[351012514,1738285847234,-500.0,0.00019887,2]
[351012516,1738285847244,-500.0,0.00019887,2]
[351012518,1738285847260,-500.0,0.00019887,2]
[351012521,1738285847272,-500.0,0.00019887,2]
[351012523,1738285847284,-500.0,0.00019887,2]
[351012525,1738285847294,-98735.23911714,0.00019888,7]
[351012533,1738285847359,-413.02977805,0.00019888,7]
[351012535,1738285847373,-628.8,0.00019888,7]
[351012538,1738285847385,-304.82972928,0.00019888,7]
[351012565,1738285847645,-500.0,0.00016438,2]
[351012568,1738285847655,-500.0,0.00016575,2]
[351012570,1738285847666,-395.0,0.00018198,2]
[351012572,1738285847676,-604.74361074,0.00019589,2]
[351013899,1738285878469,250.0,0.00017,30]
[351013900,1738285882994,250.0,0.00015,30]
[351013901,1738285884165,250.0,0.00013,30]
[351013902,1738285884940,250.0,0.00011,30]
[351013903,1738285885914,250.0,9e-05,30]
[351013904,1738285886968,250.0,7e-05,30]
[351013905,1738285887779,250.0,5e-05,30]
[351013906,1738285888520,292.56905,3e-05,30]
[351013907,1738286169817,250.0,0.00017,30]
[351013908,1738286170264,250.0,0.00015,30]
[351013909,1738286170655,385.642263,0.00013,30]
[351013910,1738286540397,160.789299,0.00013973,2]
[351013912,1738286753562,162.865848,0.00015101,2]
[351013985,1738287032346,-161.109273,0.00015205,2]
[351013986,1738287032357,-166.0,0.00015446,2]
[351013987,1738287032367,-300.0,0.00015607,2]
[351013988,1738287032377,-24900.0,0.00015608,2]
[351013989,1738287032387,-331.46516321,0.00016337,2]
[351013990,1738287032397,-688.3318056,0.00016437,2]
[351013991,1738287032406,-500.0,0.00016437,2]
[351013992,1738287032416,-650.55210854,0.00016437,2]
[351013993,1738287032426,-500.0,0.00016437,2]
[351013994,1738287032436,-500.0,0.00016437,2]
[351013995,1738287032446,-500.0,0.00016437,2]
[351013996,1738287032456,-500.0,0.00016437,2]
[351013998,1738287032466,-500.0,0.00016437,2]
[351013999,1738287032475,-500.0,0.00016437,2]
[351014000,1738287032485,-500.0,0.00016437,2]
[351014001,1738287032495,-501.59740139,0.00016437,2]
[351014002,1738287032505,-500.0,0.00016437,2]
[351014003,1738287032515,-458.0,0.00016437,2]
[351014004,1738287032524,-500.0,0.00016437,2]
[351014005,1738287032534,-500.0,0.00016437,2]
[351014006,1738287032544,-226.37744372,0.00016437,2]
[351014007,1738287032554,-247.71389001,0.00016437,2]
[351014008,1738287032563,-500.0,0.00016437,2]
[351014009,1738287032573,-500.0,0.00016437,2]
[351014010,1738287032583,-500.0,0.00016437,2]
[351014011,1738287032593,-500.0,0.00016437,2]
[351014012,1738287032602,-500.0,0.00016437,2]
[351014013,1738287032612,-325.53858192,0.00016437,2]
[351014014,1738287032622,-500.0,0.00016437,2]
[351014015,1738287032631,-500.0,0.00016437,2]
[351014016,1738287032641,-500.0,0.00016437,2]
[351014017,1738287032651,-500.0,0.00016438,2]
[351014018,1738287032661,-502.4968623,0.00016438,2]
[351014019,1738287032671,-500.0,0.00016438,2]
[351014020,1738287032681,-501.02648705,0.00016438,2]
[351014021,1738287032690,-502.35069896,0.00016438,2]
[351014022,1738287032700,-196.22273741,0.00016438,2]
[351014023,1738287032709,-504.1844452,0.00016438,2]
[351014024,1738287032719,-500.0,0.00016438,2]
[351014025,1738287032729,-646.09204506,0.00016438,2]
[351014026,1738287032740,-500.0,0.00016438,2]
[351014027,1738287032751,-361.38913102,0.00016438,2]
[351014028,1738287032763,-138.61086898,0.00016438,2]
[351014029,1738287032773,-500.0,0.00016438,2]
[351014030,1738287032783,-500.0,0.00016438,2]
[351014031,1738287032793,-500.0,0.00016438,2]
[351014032,1738287032802,-500.0,0.00016438,2]
[351014033,1738287032812,-124.27517999,0.00016438,2]
[351014034,1738287032832,-375.72482001,0.00016438,2]
[351014035,1738287032842,-500.0,0.00016438,2]
[351014036,1738287032851,-500.0,0.00016438,2]
[351014037,1738287032861,-500.0,0.00016438,2]
[351014038,1738287032871,-500.0,0.00016438,2]
[351014039,1738287032880,-624.64,0.00016438,2]
[351014040,1738287032889,-500.0,0.00016438,2]
[351014041,1738287032899,-500.0,0.00016438,2]
[351014042,1738287032908,-500.0,0.00016438,2]
[351014043,1738287033084,-500.0,0.00016438,2]
[351014044,1738287033094,-500.0,0.00016438,2]
[351014045,1738287033105,-505.02949985,0.00016438,2]
[351014046,1738287033116,-500.0,0.00016438,2]
[351014047,1738287033131,-500.0,0.00016438,2]
[351014048,1738287033141,-500.0,0.00016438,2]
[351014049,1738287033151,-500.0,0.00016438,2]
[351014050,1738287033161,-500.0,0.00016438,2]
[351014051,1738287033171,-500.0,0.00016438,2]
[351014052,1738287033182,-500.0,0.00016438,2]
[351014053,1738287033192,-500.0,0.00016438,2]
[351014054,1738287033203,-215.4490112,0.00016438,2]
[351014055,1738287033213,-500.0,0.00016438,2]
[351014056,1738287033222,-500.0,0.00016438,2]
[351014057,1738287033232,-500.0,0.00016438,2]
[351014058,1738287033242,-500.0,0.00016438,2]
[351014059,1738287033252,-500.60485919,0.00016438,2]
[351014060,1738287033261,-500.0,0.00016438,2]
[351014061,1738287033271,-500.0,0.00016438,2]
[351014062,1738287033281,-461.58725023,0.00016438,2]
[351014063,1738287033291,-500.0,0.00016438,2]
[351014064,1738287033301,-500.0,0.00016438,2]
[351014065,1738287033310,-503.98010126,0.00016438,2]
[351014066,1738287033320,-500.0,0.00016438,2]
[351014067,1738287033330,-504.07045281,0.00016438,2]
[351014068,1738287033340,-500.0,0.00016438,2]
[351014069,1738287033350,-500.0,0.00016438,2]
[351014070,1738287033359,-500.0,0.00016438,2]
[351014071,1738287033369,-500.0,0.00016438,2]
[351014072,1738287033378,-499.85445729,0.00016438,2]
[351014073,1738287033388,-500.0,0.00016438,2]
[351014074,1738287033398,-500.0,0.00016438,2]
[351014075,1738287033408,-500.0,0.00016438,2]
[351014076,1738287033418,-500.0,0.00016438,2]
[351014077,1738287033428,-500.0,0.00016438,2]
[351014078,1738287033438,-500.0,0.00016438,2]
[351014079,1738287033448,-500.0,0.00016438,2]
[351014080,1738287033457,-500.0,0.00016438,2]
[351014081,1738287033468,-500.0,0.00016438,2]
[351014082,1738287033478,-500.0,0.00016438,2]
[351014083,1738287033487,-500.0,0.00016438,2]
[351014084,1738287033497,-500.0,0.00016438,2]
[351014085,1738287033506,-500.0,0.00016438,2]
[351014086,1738287033516,-500.0,0.00016438,2]
[351014087,1738287033525,-500.0,0.00016438,2]
[351014088,1738287033535,-500.0,0.00016438,2]
[351014089,1738287033545,-500.0,0.00016438,2]
[351014090,1738287033555,-500.0,0.00016438,2]
[351014091,1738287033564,-500.0,0.00016438,2]
[351014092,1738287033574,-500.0,0.00016438,2]
[351014093,1738287033584,-163.38918012,0.00016438,2]
[351014094,1738287033593,-500.0,0.00016438,2]
[351014095,1738287033603,-500.0,0.00016438,2]
[351014096,1738287033612,-506.16408799,0.00016438,2]
[351014097,1738287033622,-500.0,0.00016438,2]
[351014098,1738287033631,-500.0,0.00016438,2]
[351014099,1738287033642,-500.0,0.00016438,2]
[351014100,1738287033651,-500.0,0.00016438,2]
[351014101,1738287033661,-500.0,0.00016438,2]
[351014102,1738287033671,-510.36657055,0.00016438,2]
[351014103,1738287033681,-500.0,0.00016438,2]
[351014104,1738287033691,-500.0,0.00016438,2]
[351014105,1738287033702,-500.0,0.00016438,2]
[351014106,1738287033712,-500.0,0.00016438,2]
[351014107,1738287033721,-501.36331429,0.00016438,2]
[351014108,1738287033730,-500.0,0.00016438,2]
[351014109,1738287033743,-500.0,0.00016438,2]
[351014110,1738287033753,-245.41574835,0.00016438,2]
[351014111,1738287033762,-500.0,0.00016438,2]
[351014112,1738287033772,-500.0,0.00016438,2]
[351014113,1738287033783,-500.0,0.00016438,2]
[351014114,1738287033792,-500.0,0.00016438,2]
[351014115,1738287033802,-500.0,0.00016438,2]
[351014116,1738287033812,-500.0,0.00016438,2]
[351014117,1738287033822,-500.0,0.00016438,2]
[351014118,1738287033833,-500.0,0.00016438,2]
[351014119,1738287033843,-500.0,0.00016438,2]
[351014120,1738287033852,-500.0,0.00016438,2]
[351014121,1738287033862,-500.0,0.00016438,2]
[351014122,1738287033872,-501.60868557,0.00016438,2]
[351014123,1738287033881,-439.54668019,0.00016438,2]
[351014124,1738287033891,-500.76076375,0.00016438,2]
[351014125,1738287033900,-150.21464549,0.00016438,2]
[351014126,1738287033910,-500.0,0.00016438,2]
[351014127,1738287033920,-500.0,0.00016438,2]
[351014128,1738287033928,-500.0,0.00016438,2]
[351014129,1738287033938,-500.0,0.00016438,2]
[351014130,1738287033949,-500.0,0.00016438,2]
[351014131,1738287033958,-500.0,0.00016438,2]
[351014132,1738287033968,-500.0,0.00016438,2]
[351014133,1738287033977,-500.0,0.00016438,2]
[351014134,1738287033987,-500.0,0.00016438,2]
[351014135,1738287033997,-500.0,0.00016438,2]
[351014136,1738287034006,-508.56595639,0.00016438,2]
[351014137,1738287034015,-500.0,0.00016438,2]